Workbook

Sheet Final
B5: Calculated: | C5: CJM | F5: Date: | G5: 2018-11-07 | M5: Stage Review Submission: | N5: Stage 2
B6: Checked: | C6: JDC | F6: Date: | G6: 2018-11-07 | M6: PID/Job No.: | N6: 102858
B7: Concurred: | F7: Date: | M7: Bridge No.: | N7: POR-76-1658
B8: Back Checked: | F8: Date: | M8: SFN: | N8: 6702880
B9: Released: | F9: Date:
B10: Project: | C10: POR-76-1658/2118
B11: Subject: | C11: Spread check and Discharge Calculations, Final Condition
M12: (Input values are shown underlined and in italics.)
M13: References
A14: Drainage and Gutter Spread Calculations
B16: General Data
C18: Zone | E18: A | I18: (Fig. 1101-3) | K18: a | L18: =IF($E$18="A",VLOOKUP($E$19,Tables!ZoneA,2),IF($E$18="B",VLOOKUP($E$19,Tables!ZoneB,2),IF($E$18="C",VLOOKUP($E$19,Tables!ZoneC,2),IF($E$18="D",VLOOKUP($E$19,Tables!ZoneD,2))))) -> 46.184
C19: Return | E19: 2 | F19: yrs | G19: =IF(E19=10,"Freeways",IF(E19=5,"High volume highways.",IF(E19=2,"All other highways.","Check frequency."))) -> All other highways. | I19: (1103.2) | K19: b | L19: =IF($E$18="A",VLOOKUP($E$19,Tables!ZoneA,3),IF($E$18="B",VLOOKUP($E$19,Tables!ZoneB,3),IF($E$18="C",VLOOKUP($E$19,Tables!ZoneC,3),IF($E$18="D",VLOOKUP($E$19,Tables!ZoneD,3))))) -> 9
C20: Pvmt. Spread | E20: 6 | F20: Max. Allow. | I20: (1103.2) | K20: c | L20: =IF($E$18="A",VLOOKUP($E$19,Tables!ZoneA,4),IF($E$18="B",VLOOKUP($E$19,Tables!ZoneB,4),IF($E$18="C",VLOOKUP($E$19,Tables!ZoneC,4),IF($E$18="D",VLOOKUP($E$19,Tables!ZoneD,4))))) -> 0.859
C22: Vertical Curve 1
D23: PVI-1 | F23: L | G23: G1 | H23: G2 | I23: e
D24: Station | E24: Elev. | G24: Back | H24: Ahead
D25: 5008.45 | E25: 1126.33 | F25: 635.5 | G25: 0.0308 | H25: -0.0451 | I25: =(H25-G25)*F25/8 -> -6.02930625
D27: PVC-1 | F27: PVT-1 | H27: =IF(H25-G25<0,"High Point",IF(H25-G25>0,"Low Point","")) -> High Point
D28: Station | E28: Elev. | F28: Station | G28: Elev. | H28: Station | I28: Elev.
D29: 4690.7 | E29: 1116.54 | F29: 5326.2 | G29: 1112 | H29: =IF(AND(G25>0,H25>0),F29,IF(AND(G25<0,H25<0),D29,D29+F25*G25/-(H25-G25))) -> 4948.584058 | I29: =IF(H29<$D$29,$E$29+$G$25*(H29-$D$29),IF(AND(H29>=$D$29,H29<=$F$29),$E$29+$G$25*(H29-$D$29)+$I$25*((H29-$D$29)/$F$25*2)^2,IF(AND(H29>$F$29,H29<$K$29),$E$25+$H$25*(H29-$D$25),IF(AND(H29>=$K$29,H29<=$M$29),$L$29+$N$25*(H29-$K$29)+$P$25*((H29-$K$29)/$M$25*2)^2,$L$25+$O$25*(H29-$K$25))))) -> 1120.511414
B31: General Formulae
C33: Hydrology
C34: to = | D34: 1.8 ( 1.1 - C ) L1/2 / s1/3 ≥ 10 min where "s" is in percent
C35: i = | D35: a / ( t + b )c
C36: Q = | D36: C i A
C37: Z = | D37: 1 / Cross Slope
C38: Q = | D38: 0.56 ( Z / n ) s1/2 d8/3 for triangular channel flow.
C39: d = | D39: { Q / [ 0.56 ( Z / n ) s1/2 ] }3/8 where "s" is in ft/ft
C40: SG = | D40: Z d
C42: Neenah Inlet Capacity
C43: Qi = | D43: K d5/3 | E43: Inlet capacity. | K43: (Neenah Foundry Co., Inlet Grate Capacities, p. ii)
C44: K = | D44: 35 | E44: Inlet capacity factor. | K44: (Neenah, Inlet Capacities, No. R-3924, p. 37)
B47: Tabulated Data
C49: Region | E49: Input Data | U49: Flow and Gutter Spread | AE49: Neenah Inlets
E50: Drainage Area | M50: Grade | P50: Roadway Data | S50: Parameters | U50: Critical Point | V50: Hydrological Data | AB50: Spread Data | AE50: Inlet Capacity Factor | AF50: Inlet Capacity | AG50: Inlets Required
E51: Begin Station | F51: End Station | G51: Length | H51: Begin Width | I51: End Width | J51: Average Width | K51: Drainage Area | M51: Begin Elevation | N51: End Elevation | O51: Average Longitudinal Grade | P51: Cross Slope | Q51: Curb Height | R51: Distance from Curb to Edge of Lane | S51: Roughness Coefficient | T51: Runoff Coefficient | V51: Concentration Time | W51: Rainfall Intensity | X51: Drainage Area | Y51: Discharge | Z51: Previous Discharge | AA51: Total Discharge | AB51: Average Longitudinal Grade | AC51: Depth at Curb | AD51: Spread
C52: Variable | G52: L | H52: W1 | I52: W2 | J52: W | K52: L W | P52: Sx | S52: n | T52: C | V52: to | W52: i | X52: A | Y52: Q | Z52: Qp | AA52: Qt | AB52: s | AC52: d | AD52: SG | AE52: K | AF52: Qi
C53: Units | G53: ft | H53: ft | I53: ft | J53: ft | K53: ft2 | L53: acres | O53: ft/ft | P53: ft/ft | Q53: in | R53: ft | V53: min | W53: in/hr | X53: acres | Y53: cfs | Z53: cfs | AA53: cfs | AB53: ft/ft | AC53: ft | AD53: ft | AF53: cfs | AG53: ea
C54: Median Side of the Bridge Forward - Final Condition
C55: From High Point | E55: =H29 -> 4948.584058 | F55: =60112.41+25 -> 60137.41 | G55: =ABS(E55-F55) -> 55188.82594 | H55: 13.75 | I55: 13.75 | J55: 13.75 | K55: =G55*J55 -> 758846.3567 | L55: =ROUND(K55*2.2957*10^-5,4) -> 17.4208 | M55: =ROUND(IF(E55<$D$29,$E$29+$G$25*(E55-$D$29),IF(AND(E55>=$D$29,E55<=$F$29),$E$29+$G$25*(E55-$D$29)+$I$25*((E55-$D$29)/$F$25*2)^2,IF(AND(E55>$F$29,E55<$K$29),$E$25+$H$25*(E55-$D$25),IF(AND(E55>=$K$29,E55<=$M$29),$L$29+$N$25*(E55-$K$29)+$P$25*((E55-$K$29)/$M$25*2)^2,$L$25+$O$25*(E55-$K$25))))),3) -> 1120.511 | N55: 0 | O55: =ROUND((M55-N55)/G55,4) -> 0.0203 | P55: 0.04 | Q55: 6 | R55: 12 | S55: 0.015 | T55: 0.9 | U55: =IF(M55=MIN(M55:N55),E55,F55) -> 60137.41 | V55: =MAX(ROUND(1.8*(1.1-T55)*G55^(1/2)/(ABS(O55)*100)^(1/3),3),10) -> 66.793 | W55: =ROUND($L$18/(V55+$L$19)^$L$20,3) -> 1.122 | X55: =L55 -> 17.4208 | Y55: =ROUND(T55*W55*X55,3) -> 17.592 | Z55: 0 | AA55: =SUM(Y55:Z55) -> 17.592 | AB55: =ABS(O55) -> 0.0203 | AC55: =ROUND((AA55/(0.56*(1/P55)/S55*AB55^(1/2)))^(3/8),3) -> 0.468 | AD55: =(1/P55)*AC55 -> 11.7 | AE55: =$D$44 -> 35 | AF55: =AE55*AC55^(5/3) -> 9.873651617 | AG55: =CEILING(AA55/AF55,1) -> 2
C56: to End/A.S.
C58: Median Side of the Bridge Back - Final Condition
C59: HP Bk | E59: =H29 -> 4948.584058 | F59: =59798.5-25 -> 59773.5 | G59: =ABS(F59-E59) -> 54824.91594 | H59: 13.75 | I59: 13.75 | J59: 13.75 | K59: =G59*J59 -> 753842.5942 | L59: =ROUND(K59*2.2957*10^-5,4) -> 17.306 | M59: =ROUND(IF(E59<$D$29,$E$29+$G$25*(E59-$D$29),IF(AND(E59>=$D$29,E59<=$F$29),$E$29+$G$25*(E59-$D$29)+$I$25*((E59-$D$29)/$F$25*2)^2,IF(AND(E59>$F$29,E59<$K$29),$E$25+$H$25*(E59-$D$25),IF(AND(E59>=$K$29,E59<=$M$29),$L$29+$N$25*(E59-$K$29)+$P$25*((E59-$K$29)/$M$25*2)^2,$L$25+$O$25*(E59-$K$25))))),3) -> 1120.511 | N59: 0 | O59: =ROUND((M59-N59)/G59,4) -> 0.0204 | P59: 0.04 | Q59: 6 | R59: 12 | S59: 0.015 | T59: 0.9 | U59: =F59 -> 59773.5 | V59: =MAX(ROUND(1.8*(1.1-T59)*G59^(1/2)/(ABS(O59)*100)^(1/3),3),10) -> 66.463 | W59: =ROUND($L$18/(V59+$L$19)^$L$20,3) -> 1.126 | X59: =L59 -> 17.306 | Y59: =ROUND(T59*W59*X59,3) -> 17.538 | Z59: 0 | AA59: =SUM(Y59:Z59) -> 17.538 | AB59: =ABS(O59) -> 0.0204 | AC59: =ROUND((AA59/(0.56*(1/P59)/S59*AB59^(1/2)))^(3/8),3) -> 0.467 | AD59: =(1/P59)*AC59 -> 11.675 | AE59: =$D$44 -> 35 | AF59: =AE59*AC59^(5/3) -> 9.838514091 | AG59: =CEILING(AA59/AF59,1) -> 2
C60: to End/A.S.
B62: LEFT | C62: Outside Side of the Bridge Forward Abutment - Final Condition
C63: From High Point | E63: =H29 -> 4948.584058 | F63: 5137.43 | G63: =ABS(E63-F63) -> 188.845942 | H63: 14.5 | I63: 14.5 | J63: =AVERAGE(H63:I63) -> 14.5 | K63: =G63*J63 -> 2738.266159 | L63: =ROUND(K63*2.2957*10^-5,4) -> 0.0629 | M63: =ROUND(IF(E63<$D$29,$E$29+$G$25*(E63-$D$29),IF(AND(E63>=$D$29,E63<=$F$29),$E$29+$G$25*(E63-$D$29)+$I$25*((E63-$D$29)/$F$25*2)^2,IF(AND(E63>$F$29,E63<$K$29),$E$25+$H$25*(E63-$D$25),IF(AND(E63>=$K$29,E63<=$M$29),$L$29+$N$25*(E63-$K$29)+$P$25*((E63-$K$29)/$M$25*2)^2,$L$25+$O$25*(E63-$K$25))))),3) -> 1120.511 | N63: 1118.382 | O63: =ROUND((M63-N63)/G63,4) -> 0.0113 | P63: 0.016 | Q63: 4 | R63: 4 | S63: 0.015 | T63: 0.9 | U63: =IF(M63=MIN(M63:N63),E63,F63) -> 5137.43 | V63: =MAX(ROUND(1.8*(1.1-T63)*G63^(1/2)/(ABS(O63)*100)^(1/3),3),10) -> 10 | W63: =ROUND($L$18/(V63+$L$19)^$L$20,3) -> 3.682 | X63: =L63 -> 0.0629 | Y63: =ROUND(T63*W63*X63,3) -> 0.208 | Z63: 0 | AA63: =SUM(Y63:Z63) -> 0.208 | AB63: =ABS(O63) -> 0.0113 | AC63: =ROUND((AA63/(0.56*(1/P63)/S63*AB63^(1/2)))^(3/8),3) -> 0.07 | AD63: =(1/P63)*AC63 -> 4.375 | AE63: =$D$44 -> 35 | AF63: =AE63*AC63^(5/3) -> 0.4161323168 | AG63: =CEILING(AA63/AF63,1) -> 1
C64: to End/A.S.
C66: Outside Side of the Bridge Rear Abutment - Final Condition
C67: HP Bk | E67: =H29 -> 4948.584058 | F67: 4863.27 | G67: =ABS(F67-E67) -> 85.31405797 | H67: 14.5 | I67: 14.5 | J67: =AVERAGE(H67:I67) -> 14.5 | K67: =G67*J67 -> 1237.053841 | L67: =ROUND(K67*2.2957*10^-5,4) -> 0.0284 | M67: =ROUND(IF(E67<$D$29,$E$29+$G$25*(E67-$D$29),IF(AND(E67>=$D$29,E67<=$F$29),$E$29+$G$25*(E67-$D$29)+$I$25*((E67-$D$29)/$F$25*2)^2,IF(AND(E67>$F$29,E67<$K$29),$E$25+$H$25*(E67-$D$25),IF(AND(E67>=$K$29,E67<=$M$29),$L$29+$N$25*(E67-$K$29)+$P$25*((E67-$K$29)/$M$25*2)^2,$L$25+$O$25*(E67-$K$25))))),3) -> 1120.511 | N67: 1120.077 | O67: =ROUND((M67-N67)/G67,4) -> 0.0051 | P67: 0.016 | Q67: 4 | R67: 4 | S67: 0.015 | T67: 0.9 | U67: =F67 -> 4863.27 | V67: =MAX(ROUND(1.8*(1.1-T67)*G67^(1/2)/(ABS(O67)*100)^(1/3),3),10) -> 10 | W67: =ROUND($L$18/(V67+$L$19)^$L$20,3) -> 3.682 | X67: =L67 -> 0.0284 | Y67: =ROUND(T67*W67*X67,3) -> 0.094 | Z67: 0 | AA67: =SUM(Y67:Z67) -> 0.094 | AB67: =ABS(O67) -> 0.0051 | AC67: =ROUND((AA67/(0.56*(1/P67)/S67*AB67^(1/2)))^(3/8),3) -> 0.061 | AD67: =(1/P67)*AC67 -> 3.8125 | AE67: =$D$44 -> 35 | AF67: =AE67*AC67^(5/3) -> 0.330839815 | AG67: =CEILING(AA67/AF67,1) -> 1
C68: to End/A.S.
B70: RIGHT | C70: Outside Side of the Bridge Forward Abutment - Final Condition
C71: From High Point | E71: =H29 -> 4948.584058 | F71: 5137.43 | G71: =ABS(E71-F71) -> 188.845942 | H71: 14.5 | I71: 14.5 | J71: =AVERAGE(H71:I71) -> 14.5 | K71: =G71*J71 -> 2738.266159 | L71: =ROUND(K71*2.2957*10^-5,4) -> 0.0629 | M71: =ROUND(IF(E71<$D$29,$E$29+$G$25*(E71-$D$29),IF(AND(E71>=$D$29,E71<=$F$29),$E$29+$G$25*(E71-$D$29)+$I$25*((E71-$D$29)/$F$25*2)^2,IF(AND(E71>$F$29,E71<$K$29),$E$25+$H$25*(E71-$D$25),IF(AND(E71>=$K$29,E71<=$M$29),$L$29+$N$25*(E71-$K$29)+$P$25*((E71-$K$29)/$M$25*2)^2,$L$25+$O$25*(E71-$K$25))))),3) -> 1120.511 | N71: =ROUND(IF(F71<$D$29,$E$29+$G$25*(F71-$D$29),IF(AND(F71>=$D$29,F71<=$F$29),$E$29+$G$25*(F71-$D$29)+$I$25*((F71-$D$29)/$F$25*2)^2,IF(AND(F71>$F$29,F71<$K$29),$E$25+$H$25*(F71-$D$25),IF(AND(F71>=$K$29,F71<=$M$29),$L$29+$N$25*(F71-$K$29)+$P$25*((F71-$K$29)/$M$25*2)^2,$L$25+$O$25*(F71-$K$25))))),3) -> 1118.382 | O71: =ROUND((M71-N71)/G71,4) -> 0.0113 | P71: 0.016 | Q71: 4 | R71: 4 | S71: 0.015 | T71: 0.9 | U71: =IF(M71=MIN(M71:N71),E71,F71) -> 5137.43 | V71: =MAX(ROUND(1.8*(1.1-T71)*G71^(1/2)/(ABS(O71)*100)^(1/3),3),10) -> 10 | W71: =ROUND($L$18/(V71+$L$19)^$L$20,3) -> 3.682 | X71: =L71 -> 0.0629 | Y71: =ROUND(T71*W71*X71,3) -> 0.208 | Z71: 0 | AA71: =SUM(Y71:Z71) -> 0.208 | AB71: =ABS(O71) -> 0.0113 | AC71: =ROUND((AA71/(0.56*(1/P71)/S71*AB71^(1/2)))^(3/8),3) -> 0.07 | AD71: =(1/P71)*AC71 -> 4.375 | AE71: =$D$44 -> 35 | AF71: =AE71*AC71^(5/3) -> 0.4161323168 | AG71: =CEILING(AA71/AF71,1) -> 1
C72: to End/A.S.
C74: Outside Side of the Bridge Rear Abutment - Final Condition
C75: HP Bk | E75: =H29 -> 4948.584058 | F75: 4863.33 | G75: =ABS(F75-E75) -> 85.25405797 | H75: 14.5 | I75: 14.5 | J75: =AVERAGE(H75:I75) -> 14.5 | K75: =G75*J75 -> 1236.183841 | L75: =ROUND(K75*2.2957*10^-5,4) -> 0.0284 | M75: =ROUND(IF(E75<$D$29,$E$29+$G$25*(E75-$D$29),IF(AND(E75>=$D$29,E75<=$F$29),$E$29+$G$25*(E75-$D$29)+$I$25*((E75-$D$29)/$F$25*2)^2,IF(AND(E75>$F$29,E75<$K$29),$E$25+$H$25*(E75-$D$25),IF(AND(E75>=$K$29,E75<=$M$29),$L$29+$N$25*(E75-$K$29)+$P$25*((E75-$K$29)/$M$25*2)^2,$L$25+$O$25*(E75-$K$25))))),3) -> 1120.511 | N75: =ROUND(IF(F75<$D$29,$E$29+$G$25*(F75-$D$29),IF(AND(F75>=$D$29,F75<=$F$29),$E$29+$G$25*(F75-$D$29)+$I$25*((F75-$D$29)/$F$25*2)^2,IF(AND(F75>$F$29,F75<$K$29),$E$25+$H$25*(F75-$D$25),IF(AND(F75>=$K$29,F75<=$M$29),$L$29+$N$25*(F75-$K$29)+$P$25*((F75-$K$29)/$M$25*2)^2,$L$25+$O$25*(F75-$K$25))))),3) -> 1120.077 | O75: =ROUND((M75-N75)/G75,4) -> 0.0051 | P75: 0.016 | Q75: 4 | R75: 4 | S75: 0.015 | T75: 0.9 | U75: =F75 -> 4863.33 | V75: =MAX(ROUND(1.8*(1.1-T75)*G75^(1/2)/(ABS(O75)*100)^(1/3),3),10) -> 10 | W75: =ROUND($L$18/(V75+$L$19)^$L$20,3) -> 3.682 | X75: =L75 -> 0.0284 | Y75: =ROUND(T75*W75*X75,3) -> 0.094 | Z75: 0 | AA75: =SUM(Y75:Z75) -> 0.094 | AB75: =ABS(O75) -> 0.0051 | AC75: =ROUND((AA75/(0.56*(1/P75)/S75*AB75^(1/2)))^(3/8),3) -> 0.061 | AD75: =(1/P75)*AC75 -> 3.8125 | AE75: =$D$44 -> 35 | AF75: =AE75*AC75^(5/3) -> 0.330839815 | AG75: =CEILING(AA75/AF75,1) -> 1
C76: to End/A.S.
B77: 4. No scuppers required for FINAL condition.

Sheet MOT Phase 2
B1: JMT
B4: Calculated: | C4: CM | F4: Date: | G4: 2016-03-03 | M4: Stage Review Submission: | N4: Stage 1
B5: Checked: | F5: Date: | M5: PID/Job No.: | N5: 99626
B6: Concurred: | F6: Date: | M6: Bridge No.: | N6: MAH-76K-1482
B7: Back Checked: | F7: Date: | M7: SFN: | N7: 5029784
B8: Released: | F8: Date:
B9: Project: | C9: MAH-164/626-4.85/1.05
B10: Subject: | C10: Spread check for MOT condition, Phase 2 on new structure
M11: (Input values are shown underlined and in italics.)
M12: References
A13: Drainage and Gutter Spread Calculations
B15: General Data
C17: Zone | E17: a | I17: (Fig. 1101-3) | K17: a | L17: =IF($E$17="A",VLOOKUP($E$18,Tables!ZoneA,2),IF($E$17="B",VLOOKUP($E$18,Tables!ZoneB,2),IF($E$17="C",VLOOKUP($E$18,Tables!ZoneC,2),IF($E$17="D",VLOOKUP($E$18,Tables!ZoneD,2))))) -> 46.184
B18: MOT Condition | C18: Return | E18: 2 | F18: yrs | G18: =IF(E18=10,"Freeways",IF(E18=5,"High volume highways.",IF(E18=2,"All other highways.","Check frequency."))) -> All other highways. | I18: (1103.2) | K18: b | L18: =IF($E$17="A",VLOOKUP($E$18,Tables!ZoneA,3),IF($E$17="B",VLOOKUP($E$18,Tables!ZoneB,3),IF($E$17="C",VLOOKUP($E$18,Tables!ZoneC,3),IF($E$17="D",VLOOKUP($E$18,Tables!ZoneD,3))))) -> 9
C19: Pvmt. Spread | E19: 1 | F19: Max. Allow. | I19: (1103.2) | K19: c | L19: =IF($E$17="A",VLOOKUP($E$18,Tables!ZoneA,4),IF($E$17="B",VLOOKUP($E$18,Tables!ZoneB,4),IF($E$17="C",VLOOKUP($E$18,Tables!ZoneC,4),IF($E$17="D",VLOOKUP($E$18,Tables!ZoneD,4))))) -> 0.859
C21: Constant -2.12% grade, no vertical curve on bridge.
C23: Elevation at Station 204+00 = 1126.26 from P & P sheet
B28: General Formulae
C30: Hydrology
C31: to = | D31: 1.8 ( 1.1 - C ) L1/2 / s1/3 ≥ 10 min where "s" is in percent
C32: i = | D32: a / ( t + b )c
C33: Q = | D33: C i A
C34: Z = | D34: 1 / Cross Slope
C35: Q = | D35: 0.56 ( Z / n ) s1/2 d8/3 for triangular channel flow.
C36: d = | D36: { Q / [ 0.56 ( Z / n ) s1/2 ] }3/8 where "s" is in ft/ft
C37: SG = | D37: Z d
C39: Neenah Inlet Capacity
C40: Qi = | D40: K d5/3 | E40: Inlet capacity. | K40: (Neenah Foundry Co., Inlet Grate Capacities, p. ii)
C41: K = | D41: 35 | E41: Inlet capacity factor. | K41: (Neenah, Inlet Capacities, No. R-3924, p. 37)
C43: Flow By-Pass | P43: (FHWA, HEC 12, Drainage of Highway Pavements, Chap 7,
C44: W | D44: 18 | E44: in | P44: and TxDOT, Hydaulic Design Manual, pp. 10-36 - 10-41.)
D45: =D44/12 -> 1.5 | E45: ft | G45: Grate width. (Transverse to the flow.)
C46: L | D46: 6 | E46: in
D47: =D46/12 -> 0.5 | E47: ft | G47: Grate length. (Along the flow.)
C48: T = | D48: SG | G48: Flow width in the gutter.
C49: EO = | D49: 1 - ( 1 - W/T )8/3 ≤ 1.0 | G49: Ratio of frontal flow to total flow. | P49: (FHWA, HEC 12, Drainage of Highway Pavements, eq. (7).)
C50: V = | D50: Q/A | G50: Flow in the gutter.
C51: = | D51: Q / ( d SG / 2 )
C53: VO | F53: Velocity where splash-over occurs. | P53: (TxDOT, Hydraulic Design Manual, p. 10-40.)
B55: Grate Type | C55: Grate Configuration | G55: Typical Bar Spacing (in.) | I55: Splash-over Velocity Equation
B56: 1 | C56: Parallel Bars | G56: 2 | I56: Vo = 2.218 + 4.031L - 0.649L² + 0.056L³ | Q56: 1 | R56: Parallel Bars | S56: 2.218 | T56: 4.031 | U56: -0.649 | V56: 0.056
B57: 2 | C57: Parallel Bars | G57: 1.2 | I57: Vo = 1.762 + 3.117L - 0.451L² + 0.033L³ | Q57: 2 | R57: Parallel Bars | S57: 1.762 | T57: 3.117 | U57: -0.451 | V57: 0.033
B58: 3 | C58: Transverse Curved Vane | G58: 4.5 | I58: Vo = 1.381 + 2.780L - 0.300L² + 0.020L³ | Q58: 3 | R58: Transverse Curved Vane | S58: 1.381 | T58: 2.78 | U58: -0.3 | V58: 0.02
B59: 4 | C59: Transverse 45° Tilted Vane | G59: 4 | I59: Vo = 0.988 + 2.625L - 0.359L² + 0.029L³ | Q59: 4 | R59: Transverse 45° Tilted Vane | S59: 0.988 | T59: 2.625 | U59: -0.359 | V59: 0.029
B60: 5 | C60: Parallel bars w/ transverse rods | G60: 2 parallel/4 trans | I60: Vo = 0.735 + 2.437L - 0.265L² + 0.018L³ | Q60: 5 | R60: Parallel bars w/ transverse rods | S60: 0.735 | T60: 2.437 | U60: -0.265 | V60: 0.018
B61: 6 | C61: Transverse 30° Tilted Vane | G61: 4 | I61: Vo = 0.505 + 2.344L - 0.200L² + 0.014L³ | Q61: 6 | R61: Transverse 30° Tilted Vane | S61: 0.505 | T61: 2.344 | U61: -0.2 | V61: 0.014
B62: 7 | C62: Reticuline | G62: n/a | I62: Vo = 0.030 + 2.278L - 0.179L² + 0.010L³ | Q62: 7 | R62: Reticuline | S62: 0.03 | T62: 2.278 | U62: -0.179 | V62: 0.01
C64: Grate Type: | E64: 1 | F64: =VLOOKUP(E64,Q56:V62,3) -> 2.218
C65: VO = | D65: =VLOOKUP(E64,Q56:V62,3) -> 2.218 | E65: =VLOOKUP(E64,Q56:V62,4) -> 4.031 | F65: =VLOOKUP(E64,Q56:V62,5) -> -0.649 | G65: =VLOOKUP(E64,Q56:V62,6) -> 0.056
D66: =$D$65+$E$65*$D$47+$F$65*$D$47^2+$G$65*$D$47^3 -> 4.07825 | E66: ft/s
C68: Rf = | D68: 1 - 0.09 ( V - VO ) ≤ 1.0 | H68: Ratio of frontal flow intercepted to total flow. | P68: (HEC 12, eq. (9).)
C69: RS = | D69: 1 / [ 1 + ( 0.15 V1.8 ) / ( Sx L2.3 ) ] ≤ 1.0 | H69: Ratio of side flow intercepted to total flow. | P69: (HEC 12, eq. (10).)
C70: E = | D70: Rf EO + RS ( 1 - EO ) | H70: Efficiency of the grate. | P70: (HEC 12, eq. (11).)
C71: Qi = | D71: Q [ Rf EO + RS ( 1 - EO ) ] | H71: Interception capacity of the inlet grate. | P71: (HEC 12, eq. (12).)
B73: Tabulated Data
C75: Region | E75: Input Data | U75: Flow and Gutter Spread | AE75: Neenah Inlets | AG75: Inlets on Grade
E76: Drainage Area | M76: Grade | P76: Roadway Data | S76: Parameters | U76: Critical Point | V76: Hydrological Data | AB76: Spread Data | AE76: Inlet Capacity Factor | AF76: Inlet Capacity | AG76: Ratio of Frontal Flow to Total Flow | AH76: Flow in the Gutter | AI76: Ratio of Frontal Flow Intercepted | AJ76: Ratio of Side Flow Intercepted | AK76: Grate Efficiency | AL76: Inlet Capacity | AM76: By-Pass Flow
E77: Begin Station | F77: End Station | G77: Length | H77: Begin Width | I77: End Width | J77: Average Width | K77: Drainage Area | M77: Begin Elevation | N77: End Elevation | O77: Average Longitudinal Grade | P77: Cross Slope | Q77: Curb Height | R77: Distance from Curb to Edge of Lane | S77: Roughness Coefficient | T77: Runoff Coefficient | V77: Concentration Time | W77: Rainfall Intensity | X77: Drainage Area | Y77: Discharge | Z77: Previous Discharge | AA77: Total Discharge | AB77: Average Longitudinal Grade | AC77: Depth at Curb | AD77: Spread
C78: Variable | G78: L | H78: W1 | I78: W2 | J78: W | K78: L W | P78: Sx | S78: n | T78: C | V78: to | W78: i | X78: A | Y78: Q | Z78: Qp | AA78: Qt | AB78: s | AC78: d | AD78: SG | AE78: K | AF78: Qi | AG78: EO | AH78: V | AI78: Rf | AJ78: RS | AK78: E | AL78: Qi | AM78: Q'
C79: Units | G79: ft | H79: ft | I79: ft | J79: ft | K79: ft2 | L79: acres | O79: ft/ft | P79: ft/ft | Q79: in | R79: ft | V79: min | W79: in/hr | X79: acres | Y79: cfs | Z79: cfs | AA79: cfs | AB79: ft/ft | AC79: ft | AD79: ft | AF79: cfs | AH79: ft/s | AL79: cfs | AM79: cfs
C81: Right shoulder of the Bridge - MOT Condition - Phase 2, No scuppers
C82: From Begin of Rear AS to End of Fwd AS | E82: 20447.74 | F82: =20727.48+25 -> 20752.48 | G82: =ABS(E82-F82) -> 304.74 | H82: 28 | I82: 28 | J82: =AVERAGE(H82:I82) -> 28 | K82: =G82*J82 -> 8532.72 | L82: =ROUND(K82*2.2957*10^-5,4) -> 0.1959 | M82: =1126.26-(E82-20400)*0.0212 -> 1125.247912 | N82: =1126.26-(F82-20400)*0.0212 -> 1118.787424 | O82: =ROUND((M82-N82)/G82,4) -> 0.0212 | P82: 0.016 | Q82: 6 | R82: =2+5/8/12 -> 2.052083333 | S82: 0.015 | T82: 0.9 | U82: =IF(M82=MIN(M82:N82),E82,F82) -> 20752.48 | V82: =MAX(ROUND(1.8*(1.1-T82)*G82^(1/2)/(ABS(O82)*100)^(1/3),3),10) -> 10 | W82: =ROUND($L$17/(V82+$L$18)^$L$19,3) -> 3.682 | X82: =L82 -> 0.1959 | Y82: =ROUND(T82*W82*X82,3) -> 0.649 | Z82: 0 | AA82: =SUM(Y82:Z82) -> 0.649 | AB82: =ABS(O82) -> 0.0212 | AC82: =ROUND((AA82/(0.56*(1/P82)/S82*AB82^(1/2)))^(3/8),3) -> 0.096 | AD82: =(1/P82)*AC82 -> 6 | AE82: =$D$41 -> 35 | AF82: =AE82*AC82^(5/3) -> 0.7044552868 | AG82: 0 | AH82: 0 | AI82: 0 | AJ82: 0 | AK82: =AI82*AG82+AJ82*(1-AG82) -> 0 | AL82: =AA82*(AI82*AG82+AJ82*(1-AG82)) -> 0 | AM82: =AA82-AL82 -> 0.649
C84: Right shoulder of the Bridge - MOT Condition - Phase 2, with 18 inch (standard width) scuppers
C85: From Begin of Rear AS to Scupper 1 | E85: 20447.74 | F85: =E85+50 -> 20497.74 | G85: 50 | H85: 28 | I85: 28 | J85: =AVERAGE(H85:I85) -> 28 | K85: =G85*J85 -> 1400 | L85: =ROUND(K85*2.2957*10^-5,4) -> 0.0321 | M85: =1126.26-(E85-20400)*0.0212 -> 1125.247912 | N85: 1124.187912 | O85: =ROUND((M85-N85)/G85,4) -> 0.0212 | P85: 0.016 | Q85: 6 | R85: =2+5/8/12 -> 2.052083333 | S85: 0.015 | T85: 0.9 | U85: 20497.74 | V85: =MAX(ROUND(1.8*(1.1-T85)*G85^(1/2)/(ABS(O85)*100)^(1/3),3),10) -> 10 | W85: =ROUND($L$17/(V85+$L$18)^$L$19,3) -> 3.682 | X85: =L85 -> 0.0321 | Y85: =ROUND(T85*W85*X85,3) -> 0.106 | Z85: 0 | AA85: =SUM(Y85:Z85) -> 0.106 | AB85: =ABS(O85) -> 0.0212 | AC85: =ROUND((AA85/(0.56*(1/P85)/S85*AB85^(1/2)))^(3/8),3) -> 0.048 | AD85: =(1/P85)*AC85 -> 3 | AE85: =$D$41 -> 35 | AF85: 0.2218895111 | AG85: =MIN(1-(1-$D$45/AD85)^(8/3),1) -> 0.8425098688 | AH85: =AA85/(AC85*AD85/2) -> 1.472222222 | AI85: =MIN(1-0.09*(AH85-$D$66),1) -> 1 | AJ85: =MIN(1/(1+(0.15*AH85^1.8)/(P85*$D$47^2.3)),1) -> 0.01068178117 | AK85: =AI85*AG85+AJ85*(1-AG85) -> 0.8441921439 | AL85: 0.08948436725 | AM85: 0.01651563275
C86: Scupper 1 to Scupper 2 | E86: =F85 -> 20497.74 | F86: =20548.74-10 -> 20538.74 | G86: 41 | H86: 28 | I86: 28 | J86: =AVERAGE(H86:I86) -> 28 | K86: =G86*J86 -> 1148 | L86: =ROUND(K86*2.2957*10^-5,4) -> 0.0264 | M86: 1124.187912 | N86: 1123.318712 | O86: =ROUND((M86-N86)/G86,4) -> 0.0212 | P86: 0.016 | Q86: 6 | R86: =2+5/8/12 -> 2.052083333 | S86: 0.015 | T86: 0.9 | U86: 20538.74 | V86: =MAX(ROUND(1.8*(1.1-T86)*G86^(1/2)/(ABS(O86)*100)^(1/3),3),10) -> 10 | W86: =ROUND($L$17/(V86+$L$18)^$L$19,3) -> 3.682 | X86: =L86 -> 0.0264 | Y86: =ROUND(T86*W86*X86,3) -> 0.087 | Z86: =AM85 -> 0.01651563275 | AA86: =SUM(Y86:Z86) -> 0.1035156327 | AB86: =ABS(O86) -> 0.0212 | AC86: =ROUND((AA86/(0.56*(1/P86)/S86*AB86^(1/2)))^(3/8),3) -> 0.048 | AD86: =(1/P86)*AC86 -> 3 | AE86: =$D$41 -> 35 | AF86: 0.2218895111 | AG86: =MIN(1-(1-$D$45/AD86)^(8/3),1) -> 0.8425098688 | AH86: 1.437717122 | AI86: =MIN(1-0.09*(AH86-$D$66),1) -> 1 | AJ86: =MIN(1/(1+(0.15*AH86^1.8)/(P86*$D$47^2.3)),1) -> 0.01114246454 | AK86: =AI86*AG86+AJ86*(1-AG86) -> 0.844264697 | AL86: 0.08739459431 | AM86: 0.01612103843
C87: Scupper 2 to Scupper 3 | E87: =F86 -> 20538.74 | F87: =20614.54-10 -> 20604.54 | G87: 65.8 | H87: 28 | I87: 28 | J87: =AVERAGE(H87:I87) -> 28 | K87: =G87*J87 -> 1842.4 | L87: =ROUND(K87*2.2957*10^-5,4) -> 0.0423 | M87: 1123.318712 | N87: 1121.923752 | O87: 0.0212 | P87: 0.016 | Q87: 6 | R87: 2.052083333 | S87: 0.015 | T87: 0.9 | U87: =IF(M87=MIN(M87:N87),E87,F87) -> 20604.54 | V87: =MAX(ROUND(1.8*(1.1-T87)*G87^(1/2)/(ABS(O87)*100)^(1/3),3),10) -> 10 | W87: =ROUND($L$17/(V87+$L$18)^$L$19,3) -> 3.682 | X87: =L87 -> 0.0423 | Y87: =ROUND(T87*W87*X87,3) -> 0.14 | Z87: =AM86 -> 0.01612103843 | AA87: =SUM(Y87:Z87) -> 0.1561210384 | AB87: =ABS(O87) -> 0.0212 | AC87: =ROUND((AA87/(0.56*(1/P87)/S87*AB87^(1/2)))^(3/8),3) -> 0.056 | AD87: =(1/P87)*AC87 -> 3.5 | AE87: =$D$41 -> 35 | AF87: =AE87*AC87^(5/3) -> 0.2868895677 | AG87: =MIN(1-(1-$D$45/AD87)^(8/3),1) -> 0.7751470774 | AH87: =AA87/(AC87*AD87/2) -> 1.593071821 | AI87: =MIN(1-0.09*(AH87-$D$66),1) -> 1 | AJ87: =MIN(1/(1+(0.15*AH87^1.8)/(P87*$D$47^2.3)),1) -> 0.009280826661 | AK87: =AI87*AG87+AJ87*(1-AG87) -> 0.7772338984 | AL87: =AA87*(AI87*AG87+AJ87*(1-AG87)) -> 0.1213425633 | AM87: =AA87-AL87 -> 0.03477847511
C88: Scupper 3 to Scupper 4 | E88: =F87 -> 20604.54 | F88: =20680.35+10 -> 20690.35 | G88: =ABS(E88-F88) -> 85.81 | H88: 28 | I88: 28 | J88: =AVERAGE(H88:I88) -> 28 | K88: =G88*J88 -> 2402.68 | L88: =ROUND(K88*2.2957*10^-5,4) -> 0.0552 | M88: 1121.923752 | N88: 1120.10458 | O88: =ROUND((M88-N88)/G88,4) -> 0.0212 | P88: 0.016 | Q88: 6 | R88: 2.052083333 | S88: 0.015 | T88: 0.9 | U88: =IF(M88=MIN(M88:N88),E88,F88) -> 20690.35 | V88: =MAX(ROUND(1.8*(1.1-T88)*G88^(1/2)/(ABS(O88)*100)^(1/3),3),10) -> 10 | W88: =ROUND($L$17/(V88+$L$18)^$L$19,3) -> 3.682 | X88: =L88 -> 0.0552 | Y88: =ROUND(T88*W88*X88,3) -> 0.183 | Z88: =AM87 -> 0.03477847511 | AA88: =SUM(Y88:Z88) -> 0.2177784751 | AB88: =ABS(O88) -> 0.0212 | AC88: =ROUND((AA88/(0.56*(1/P88)/S88*AB88^(1/2)))^(3/8),3) -> 0.063 | AD88: =(1/P88)*AC88 -> 3.9375 | AE88: =$D$41 -> 35 | AF88: =AE88*AC88^(5/3) -> 0.3491153626 | AG88: =MIN(1-(1-$D$45/AD88)^(8/3),1) -> 0.721645987 | AH88: =AA88/(AC88*AD88/2) -> 1.755835526 | AI88: =MIN(1-0.09*(AH88-$D$66),1) -> 1 | AJ88: =MIN(1/(1+(0.15*AH88^1.8)/(P88*$D$47^2.3)),1) -> 0.00780166557 | AK88: =AI88*AG88+AJ88*(1-AG88) -> 0.7238176119 | AL88: =AA88*(AI88*AG88+AJ88*(1-AG88)) -> 0.1576318958 | AM88: =AA88-AL88 -> 0.06014657933
C89: Scupper 4 to End of Fwd AS | E89: =F88 -> 20690.35 | F89: =20727.48+25 -> 20752.48 | G89: 62.13 | H89: 28 | I89: 28 | J89: =AVERAGE(H89:I89) -> 28 | K89: 1739.64 | L89: =ROUND(K89*2.2957*10^-5,4) -> 0.0399 | M89: 1120.10458 | N89: 1118.787424 | O89: =ROUND((M89-N89)/G89,4) -> 0.0212 | P89: 0.016 | Q89: 6 | R89: 2.052083333 | S89: 0.015 | T89: 0.9 | U89: 20752.48 | V89: =MAX(ROUND(1.8*(1.1-T89)*G89^(1/2)/(ABS(O89)*100)^(1/3),3),10) -> 10 | W89: =ROUND($L$17/(V89+$L$18)^$L$19,3) -> 3.682 | X89: =L89 -> 0.0399 | Y89: =ROUND(T89*W89*X89,3) -> 0.132 | Z89: =AM86 -> 0.01612103843 | AA89: =SUM(Y89:Z89) -> 0.1481210384 | AB89: =ABS(O89) -> 0.0212 | AC89: =ROUND((AA89/(0.56*(1/P89)/S89*AB89^(1/2)))^(3/8),3) -> 0.055 | AD89: =(1/P89)*AC89 -> 3.4375 | AE89: =$D$41 -> 35 | AF89: 0.2784021128 | AG89: =MIN(1-(1-$D$45/AD89)^(8/3),1) -> 0.7832309148 | AH89: 1.566900241 | AI89: =MIN(1-0.09*(AH89-$D$66),1) -> 1 | AJ89: =MIN(1/(1+(0.15*AH89^1.8)/(P89*$D$47^2.3)),1) -> 0.009559031753 | AK89: =AI89*AG89+AJ89*(1-AG89) -> 0.7853030173 | AL89: 0.1163198984 | AM89: 0.03180114002
A91: NOTES
B92: 1. Allowable Pavement spread was determined by adding 1 foot from the outside 11' lane + 2.05 foot shoulder = 3.05' total. See L&D Volume 2, Section 1010.1 - must provide 10 foot minimum dry lanes during MOT.
B94: Pier 1 Location = 205+48.74
B95: Pier 2 Location = 206+14.54
B96: Pier 3 Location = 206+80.35

Sheet MOT Phase 3 & 3A
B1: BARR & PREVOST
B4: Calculated: | C4: NCM | F4: Date: | G4: 2016-03-01 | M4: Stage Review Submission: | N4: Stage 1
B5: Checked: | F5: Date: | M5: PID/Job No.: | N5: 99626
B6: Concurred: | F6: Date: | M6: Bridge No.: | N6: MAH-76K-1482
B7: Back Checked: | F7: Date: | M7: SFN: | N7: 5029784
B8: Released: | F8: Date:
B9: Project: | C9: MAH-164/626-4.85/1.05
B10: Subject: | C10: Spread check for MOT condition, Phase 2 on proposed structure
M11: (Input values are shown underlined and in italics.)
M12: References
A13: Drainage and Gutter Spread Calculations
B15: General Data
C17: Zone | E17: c | I17: (Fig. 1101-3) | K17: a | L17: =IF($E$17="A",VLOOKUP($E$18,Tables!ZoneA,2),IF($E$17="B",VLOOKUP($E$18,Tables!ZoneB,2),IF($E$17="C",VLOOKUP($E$18,Tables!ZoneC,2),IF($E$17="D",VLOOKUP($E$18,Tables!ZoneD,2))))) -> 56.299
A18: MOT | C18: Return | E18: 2 | F18: yrs | G18: =IF(E18=10,"Freeways",IF(E18=5,"High volume highways.",IF(E18=2,"All other highways.","Check frequency."))) -> All other highways. | I18: (1103.2) | K18: b | L18: =IF($E$17="A",VLOOKUP($E$18,Tables!ZoneA,3),IF($E$17="B",VLOOKUP($E$18,Tables!ZoneB,3),IF($E$17="C",VLOOKUP($E$18,Tables!ZoneC,3),IF($E$17="D",VLOOKUP($E$18,Tables!ZoneD,3))))) -> 10
C19: Pvmt. Spread | E19: 1 | F19: Max. Allow. | I19: (1103.2) | K19: c | L19: =IF($E$17="A",VLOOKUP($E$18,Tables!ZoneA,4),IF($E$17="B",VLOOKUP($E$18,Tables!ZoneB,4),IF($E$17="C",VLOOKUP($E$18,Tables!ZoneC,4),IF($E$17="D",VLOOKUP($E$18,Tables!ZoneD,4))))) -> 0.876
C21: Vertical Curve 1
D22: PVI-1 | F22: L | G22: G1 | H22: G2 | I22: e
D23: Station | E23: Elev. | G23: Back | H23: Ahead
D24: 59953.84 | E24: 728.75 | F24: 900 | G24: 0.0151 | H24: -0.0152 | I24: =(H24-G24)*F24/8 -> -3.40875
D26: PVC-1 | F26: PVT-1 | H26: =IF(H24-G24<0,"High Point",IF(H24-G24>0,"Low Point","")) -> High Point
D27: Station | E27: Elev. | F27: Station | G27: Elev. | H27: Station | I27: Elev.
D28: =(D24-F24/2) -> 59503.84 | E28: =(E24-G24*F24/2) -> 721.955 | F28: =(D24+F24/2) -> 60403.84 | G28: =(E24+H24*F24/2) -> 721.91 | H28: =IF(AND(G24>0,H24>0),F28,IF(AND(G24<0,H24<0),D28,D28+F24*G24/-(H24-G24))) -> 59952.35485 | I28: =IF(H28<$D$28,$E$28+$G$24*(H28-$D$28),IF(AND(H28>=$D$28,H28<=$F$28),$E$28+$G$24*(H28-$D$28)+$I$24*((H28-$D$28)/$F$24*2)^2,IF(AND(H28>$F$28,H28<$K$28),$E$24+$H$24*(H28-$D$24),IF(AND(H28>=$K$28,H28<=$M$28),$L$28+$N$24*(H28-$K$28)+$P$24*((H28-$K$28)/$M$24*2)^2,$L$24+$O$24*(H28-$K$24))))) -> 725.3412871
B30: General Formulae
C32: Hydrology
C33: to = | D33: 1.8 ( 1.1 - C ) L1/2 / s1/3 ≥ 10 min where "s" is in percent
C34: i = | D34: a / ( t + b )c
C35: Q = | D35: C i A
C36: Z = | D36: 1 / Cross Slope
C37: Q = | D37: 0.56 ( Z / n ) s1/2 d8/3 for triangular channel flow.
C38: d = | D38: { Q / [ 0.56 ( Z / n ) s1/2 ] }3/8 where "s" is in ft/ft
C39: SG = | D39: Z d
B41: Tabulated Data
C43: Region | E43: Input Data | U43: Flow and Gutter Spread
E44: Drainage Area | M44: Grade | P44: Roadway Data | S44: Parameters | U44: Critical Point | V44: Hydrological Data | AB44: Spread Data
E45: Begin Station | F45: End Station | G45: Length | H45: Begin Width | I45: End Width | J45: Average Width | K45: Drainage Area | M45: Begin Elevation | N45: End Elevation | O45: Average Longitudinal Grade | P45: Cross Slope | Q45: Curb Height | R45: Distance from Curb to Edge of Lane | S45: Roughness Coefficient | T45: Runoff Coefficient | V45: Concentration Time | W45: Rainfall Intensity | X45: Drainage Area | Y45: Discharge | Z45: Previous Discharge | AA45: Total Discharge | AB45: Average Longitudinal Grade | AC45: Depth at Curb | AD45: Spread
C46: Variable | G46: L | H46: W1 | I46: W2 | J46: W | K46: L W | P46: Sx | S46: n | T46: C | V46: to | W46: i | X46: A | Y46: Q | Z46: Qp | AA46: Qt | AB46: s | AC46: d | AD46: SG
C47: Units | G47: ft | H47: ft | I47: ft | J47: ft | K47: ft2 | L47: acres | O47: ft/ft | P47: ft/ft | Q47: in | R47: ft | V47: min | W47: in/hr | X47: acres | Y47: cfs | Z47: cfs | AA47: cfs | AB47: ft/ft | AC47: ft | AD47: ft
C48: Median Side of the Bridge Forward - MOT Condition, Phase 3 and 3A
C49: From High Point to End FWD AS | E49: =H28 -> 59952.35485 | F49: =60114.46 -> 60114.46 | G49: =ABS(E49-F49) -> 162.1051485 | H49: 13.75 | I49: 13.75 | J49: 13.75 | K49: =G49*J49 -> 2228.945792 | L49: =ROUND(K49*2.2957*10^-5,4) -> 0.0512 | M49: =ROUND(IF(E49<$D$28,$E$28+$G$24*(E49-$D$28),IF(AND(E49>=$D$28,E49<=$F$28),$E$28+$G$24*(E49-$D$28)+$I$24*((E49-$D$28)/$F$24*2)^2,IF(AND(E49>$F$28,E49<$K$28),$E$24+$H$24*(E49-$D$24),IF(AND(E49>=$K$28,E49<=$M$28),$L$28+$N$24*(E49-$K$28)+$P$24*((E49-$K$28)/$M$24*2)^2,$L$24+$O$24*(E49-$K$24))))),3) -> 725.341 | N49: 724.899 | O49: =ROUND((M49-N49)/G49,4) -> 0.0027 | P49: 0.04 | Q49: 6 | R49: 1.5 | S49: 0.015 | T49: 0.9 | U49: =IF(M49=MIN(M49:N49),E49,F49) -> 60114.46 | V49: =MAX(ROUND(1.8*(1.1-T49)*G49^(1/2)/(ABS(O49)*100)^(1/3),3),10) -> 10 | W49: =ROUND($L$17/(V49+$L$18)^$L$19,3) -> 4.081 | X49: =L49 -> 0.0512 | Y49: =ROUND(T49*W49*X49,3) -> 0.188 | Z49: 0 | AA49: =SUM(Y49:Z49) -> 0.188 | AB49: =ABS(O49) -> 0.0027 | AC49: =ROUND((AA49/(0.56*(1/P49)/S49*AB49^(1/2)))^(3/8),3) -> 0.125 | AD49: =(1/P49)*AC49 -> 3.125
C51: Median Side of the Bridge Back - MOTCondition, Phase 3 & 3A
C52: HP Bk to Begin of Rear A.S. | E52: =H28 -> 59952.35485 | F52: 59750.55 | G52: =ABS(F52-E52) -> 201.8048515 | H52: 13.75 | I52: 13.75 | J52: 13.75 | K52: =G52*J52 -> 2774.816708 | L52: =ROUND(K52*2.2957*10^-5,4) -> 0.0637 | M52: =ROUND(IF(E52<$D$28,$E$28+$G$24*(E52-$D$28),IF(AND(E52>=$D$28,E52<=$F$28),$E$28+$G$24*(E52-$D$28)+$I$24*((E52-$D$28)/$F$24*2)^2,IF(AND(E52>$F$28,E52<$K$28),$E$24+$H$24*(E52-$D$24),IF(AND(E52>=$K$28,E52<=$M$28),$L$28+$N$24*(E52-$K$28)+$P$24*((E52-$K$28)/$M$24*2)^2,$L$24+$O$24*(E52-$K$24))))),3) -> 725.341 | N52: 724.656 | O52: =ROUND((M52-N52)/G52,4) -> 0.0034 | P52: 0.04 | Q52: 6 | R52: 1.5 | S52: 0.015 | T52: 0.9 | U52: =F52 -> 59750.55 | V52: =MAX(ROUND(1.8*(1.1-T52)*G52^(1/2)/(ABS(O52)*100)^(1/3),3),10) -> 10 | W52: =ROUND($L$17/(V52+$L$18)^$L$19,3) -> 4.081 | X52: =L52 -> 0.0637 | Y52: =ROUND(T52*W52*X52,3) -> 0.234 | Z52: 0 | AA52: =SUM(Y52:Z52) -> 0.234 | AB52: =ABS(O52) -> 0.0034 | AC52: =ROUND((AA52/(0.56*(1/P52)/S52*AB52^(1/2)))^(3/8),3) -> 0.13 | AD52: =(1/P52)*AC52 -> 3.25
A56: NOTES
B57: 1. Bridge dimensions and vertical curve data used from proposed plans.
B58: 2. No scuppers required for FINAL condition.
B59: 3. Allowable Pavement spread was determined by adding 1 foot from the outside 11' lane + 1.5 foot shoulder = 2.5' total. See L&D Volume 2, Section 1010.1 - must provide 10 foot minimum dry lanes.

Sheet Tables
J1: (L&D, Vol. 2, General Notes - Figs. 1101-2 through 1101-3)
J2: Zone | K2: Freq. | L2: a | M2: b | N2: c
J3: A | K3: 2 | L3: 46.184 | M3: 9 | N3: 0.859
K4: 5 | L4: 56.985 | M4: 10.25 | N4: 0.851
K5: 10 | L5: 64.167 | M5: 11 | N5: 0.842
K6: 25 | L6: 66.528 | M6: 11 | N6: 0.811
K7: 50 | L7: 65.702 | M7: 10.75 | N7: 0.782
K8: 100 | L8: 64.489 | M8: 10.5 | N8: 0.754
J9: B | K9: 2 | L9: 47.987 | M9: 9 | N9: 0.859
K10: 5 | L10: 60.684 | M10: 10.5 | N10: 0.858
K11: 10 | L11: 73.126 | M11: 12 | N11: 0.863
K12: 25 | L12: 75.841 | M12: 12 | N12: 0.833
K13: 50 | L13: 65.621 | M13: 10 | N13: 0.781
K14: 100 | L14: 85.047 | M14: 13.25 | N14: 0.806
J15: C | K15: 2 | L15: 56.299 | M15: 10 | N15: 0.876
K16: 5 | L16: 67.933 | M16: 11 | N16: 0.869
K17: 10 | L17: 84.55 | M17: 13 | N17: 0.882
K18: 25 | L18: 95.736 | M18: 14 | N18: 0.871
K19: 50 | L19: 96.783 | M19: 14 | N19: 0.85
K20: 100 | L20: 80.436 | M20: 11.5 | N20: 0.794
J21: D | K21: 2 | L21: 57.448 | M21: 10 | N21: 0.876
K22: 5 | L22: 67.933 | M22: 11 | N22: 0.869
K23: 10 | L23: 79.192 | M23: 12 | N23: 0.864
K24: 25 | L24: 87.886 | M24: 12.75 | N24: 0.849
K25: 50 | L25: 95.169 | M25: 13.5 | N25: 0.839
K26: 100 | L26: 91.982 | M26: 13 | N26: 0.81
